bitfinex/quotes_BTCUSD_20250831
["timestamp","ask_amount","ask_price","bid_price","bid_amount"]
[1756650165565,0.0028295,108510.0,108500.0,1.30959587]
[1756650168134,0.0028295,108510.0,108500.0,1.15315587]
[1756650168338,0.0028295,108510.0,108500.0,0.37359131]
[1756650168550,0.1871443,108510.0,108500.0,0.34060952]
[1756650168754,0.1871443,108510.0,108500.0,0.7303918]
[1756650169265,0.1871443,108510.0,108500.0,0.91472359]
[1756650169484,0.1871443,108510.0,108500.0,0.52494131]
[1756650169900,0.1871443,108510.0,108500.0,0.53003131]
[1756650170116,0.1871443,108510.0,108500.0,0.52806131]
[1756650170535,0.1871443,108510.0,108500.0,0.91784359]
[1756650171280,0.1871443,108510.0,108500.0,0.91509543]
[1756650171730,0.1871443,108510.0,108500.0,0.91706543]
[1756650172833,0.57692658,108510.0,108500.0,0.18454136]
[1756650173040,0.57692658,108510.0,108500.0,0.24488135]
[1756650175431,0.57692658,108510.0,108500.0,0.24800135]
[1756650177890,0.57692658,108510.0,108500.0,0.09156135]
[1756650178091,0.57692658,108510.0,108500.0,0.24484135]
[1756650179143,0.1871443,108510.0,108500.0,0.24993135]
[1756650179347,0.57692658,108510.0,108500.0,0.24993135]
[1756650180951,0.1871443,108510.0,108500.0,0.43426314]
[1756650182707,0.1871443,108510.0,108500.0,0.24993135]
[1756650182939,0.57692658,108510.0,108500.0,0.24993135]
[1756650183588,0.57692658,108510.0,108500.0,0.43426314]
[1756650185074,0.57692658,108510.0,108500.0,0.20938266]
[1756650188509,0.57692658,108510.0,108500.0,0.05298266]
[1756650188716,0.57692658,108510.0,108500.0,0.18335384]
[1756650190512,0.57416186,108510.0,108500.0,0.18335384]
[1756650190865,0.57416186,108510.0,108500.0,0.18647384]
[1756650192085,0.18437958,108510.0,108500.0,0.18844384]
[1756650192284,0.57416186,108510.0,108500.0,0.18844384]
[1756650193879,0.18437958,108510.0,108500.0,0.18844384]
[1756650194085,0.57416186,108510.0,108500.0,0.18844384]
[1756650200212,0.57416186,108510.0,108500.0,0.03204384]
[1756650200365,0.57416186,108510.0,108500.0,0.18840384]
[1756650201408,0.57416186,108510.0,108500.0,0.03204384]
[1756650201616,0.57416186,108510.0,108500.0,0.18331384]
[1756650202075,0.57416186,108510.0,108500.0,0.18644384]
[1756650205086,0.57416186,108510.0,108500.0,0.18842384]
[1756650210705,0.57416186,108510.0,108500.0,0.03008384]
[1756650210842,0.57416186,108510.0,108500.0,0.18640384]
[1756650212455,0.57416186,108510.0,108500.0,0.18838384]
[1756650215399,0.57416186,108510.0,108500.0,0.20684384]
[1756650215725,0.57416186,108510.0,108500.0,0.18838384]
[1756650217433,0.57500965,108510.0,108500.0,0.18838384]
[1756650219913,0.57416186,108510.0,108500.0,0.18838384]
[1756650220676,0.57501064,108510.0,108500.0,0.18838384]
[1756650220895,0.57416186,108510.0,108500.0,0.18838384]
[1756650221754,0.57501033,108510.0,108500.0,0.18838384]
[1756650222162,0.57416186,108510.0,108500.0,0.18838384]
[1756650222369,0.57500946,108510.0,108500.0,0.18838384]
[1756650222907,0.57500946,108510.0,108500.0,0.18834384]
[1756650223861,0.57416186,108510.0,108500.0,0.18834384]
[1756650224943,0.57501017,108510.0,108500.0,0.18834384]
[1756650225144,0.57416186,108510.0,108500.0,0.18834384]
[1756650225921,0.57500935,108510.0,108500.0,0.18834384]
[1756650226348,0.57416186,108510.0,108500.0,0.18834384]
[1756650226558,0.57501336,108510.0,108500.0,0.18834384]
[1756650226779,0.18523108,108510.0,108500.0,0.48659446]
[1756650227239,0.57501336,108510.0,108500.0,0.48659446]
[1756650227850,0.57501336,108510.0,108500.0,0.14598267]
[1756650228066,0.57501336,108510.0,108500.0,0.30222267]
[1756650228260,0.57501336,108510.0,108500.0,0.48655446]
[1756650231147,0.57501336,108510.0,108500.0,0.14598267]
[1756650231351,0.57501336,108510.0,108500.0,0.30222267]
[1756650231571,0.57501336,108510.0,108500.0,0.48655446]
[1756650235797,0.57501336,108510.0,108500.0,0.30218267]
[1756650239928,0.57501336,108510.0,108500.0,0.14598267]
[1756650240193,0.57501336,108510.0,108500.0,0.30218267]
[1756650244393,0.18523108,108510.0,108500.0,0.30218267]
[1756650244609,0.57501336,108510.0,108500.0,0.30218267]
[1756650245675,0.57501336,108510.0,108500.0,0.48651446]
[1756650248497,0.18523108,108510.0,108500.0,0.48651446]
[1756650248710,0.00091628,108510.0,108500.0,0.87629674]
[1756650248914,0.18523108,108510.0,108500.0,0.48651446]
[1756650250617,0.57501336,108510.0,108500.0,0.48651446]
[1756650251497,0.57501336,108510.0,108500.0,0.33031446]
[1756650251708,0.57501336,108510.0,108500.0,0.30210267]
[1756650251917,0.57501336,108510.0,108500.0,0.48643446]
[1756650252122,0.57501336,108510.0,108500.0,0.14598267]
[1756650252333,0.57501336,108510.0,108500.0,0.30210267]
[1756650252755,0.57501336,108510.0,108500.0,0.48643446]
[1756650256251,0.18523108,108510.0,108500.0,0.33031446]
[1756650256465,0.57501336,108510.0,108500.0,0.48643446]
[1756650258011,0.57501336,108510.0,108500.0,0.14598267]
[1756650258213,0.57501336,108510.0,108500.0,0.30210267]
[1756650260662,0.00091628,108510.0,108500.0,0.48643446]
[1756650260869,0.39069856,108510.0,108500.0,0.48643446]
[1756650263833,0.00091628,108510.0,108500.0,0.48643446]
[1756650267819,0.39069856,108510.0,108500.0,0.48643446]
[1756650268670,0.00091628,108510.0,108500.0,0.48643446]
[1756650269093,6.478e-05,108510.0,108500.0,0.48643446]
[1756650269320,0.38984706,108510.0,108500.0,0.48639446]
[1756650274292,0.18238056,108510.0,108500.0,0.48639446]
[1756650277139,0.18477406,108520.0,108510.0,0.20525362]
[1756650277294,0.96433862,108520.0,108510.0,0.29823363]
[1756650277499,0.96433862,108520.0,108510.0,0.30320363]
[1756650277923,0.96433862,108520.0,108510.0,0.33090163]
[1756650279968,0.78004065,108520.0,108510.0,0.33090163]
[1756650283725,0.78004065,108520.0,108510.0,0.40174163]
[1756650283922,0.39025837,108520.0,108510.0,0.40174163]
[1756650284737,0.57455619,108520.0,108510.0,0.40174163]
[1756650285969,0.18477391,108520.0,108510.0,0.40174163]
[1756650286152,0.57455619,108520.0,108510.0,0.40174163]
[1756650287702,0.18477391,108520.0,108510.0,0.40174163]
[1756650287970,0.57455619,108520.0,108510.0,0.40174163]
[1756650295358,0.57455619,108520.0,108510.0,0.55778163]
[1756650298158,0.57455619,108520.0,108510.0,0.48694163]
[1756650299052,0.57455619,108520.0,108510.0,0.33090163]
[1756650299281,0.96433847,108520.0,108510.0,0.30066683]
[1756650299748,0.96433847,108520.0,108510.0,0.48498163]
[1756650299944,0.96433847,108520.0,108510.0,0.48703163]
[1756650304322,0.96433847,108520.0,108510.0,0.30271683]
[1756650304560,0.96433847,108520.0,108510.0,0.30267683]
[1756650305600,0.18477391,108520.0,108510.0,0.48699163]
[1756650305784,0.57455619,108520.0,108510.0,0.48699163]
[1756650313628,0.57455619,108520.0,108510.0,0.30267683]
[1756650314316,0.57455619,108520.0,108510.0,0.48699163]
[1756650315313,0.18477391,108520.0,108510.0,0.48699163]
[1756650315528,0.57455619,108520.0,108510.0,0.48699163]
[1756650319282,0.00047609,108520.0,108510.0,0.48699163]
[1756650319701,0.57455619,108520.0,108510.0,0.48699163]
[1756650320112,0.39025837,108520.0,108510.0,0.48699163]
[1756650320751,0.00047609,108520.0,108510.0,0.48699163]
[1756650320952,0.39025837,108520.0,108510.0,0.48699163]
[1756650321840,0.57455619,108520.0,108510.0,0.48699163]
[1756650322672,0.57455619,108520.0,108510.0,0.30263683]
[1756650322673,0.96433847,108520.0,108510.0,0.30263683]
[1756650323106,0.18477391,108520.0,108510.0,0.30263683]
[1756650323321,0.96433847,108520.0,108510.0,0.30263683]
[1756650325078,0.57455619,108520.0,108510.0,0.48695163]
[1756650326185,0.39025837,108520.0,108510.0,0.48695163]
[1756650327051,0.57455619,108520.0,108510.0,0.48695163]
[1756650329218,0.18477391,108520.0,108510.0,0.48695163]
[1756650329667,0.57455619,108520.0,108510.0,0.48695163]
[1756650331829,0.57455619,108520.0,108510.0,0.55779163]
[1756650333572,0.18477391,108520.0,108510.0,0.55779163]
[1756650333786,0.57455619,108520.0,108510.0,0.55779163]
[1756650334088,0.57455619,108520.0,108510.0,0.55775163]
[1756650336273,0.57455619,108520.0,108510.0,0.40183163]
[1756650336496,0.57455619,108520.0,108510.0,0.55775163]
[1756650338301,0.18477391,108520.0,108510.0,0.55775163]
[1756650338516,0.57455619,108520.0,108510.0,0.55775163]
[1756650339513,0.18477391,108520.0,108510.0,0.55775163]
[1756650339663,0.57455619,108520.0,108510.0,0.55775163]
[1756650341102,0.57455619,108520.0,108510.0,0.40183163]
[1756650341314,0.57455619,108520.0,108510.0,0.55771163]
[1756650341494,0.57455619,108520.0,108510.0,0.48687163]
[1756650342645,0.57455619,108520.0,108510.0,0.14667683]
[1756650342847,0.57455619,108520.0,108510.0,0.30255683]
[1756650344568,0.57455619,108520.0,108510.0,0.14667683]
[1756650344782,0.96433847,108520.0,108510.0,0.30252683]
[1756650347840,0.96433847,108520.0,108510.0,0.04863682]
[1756650348057,0.96433847,108520.0,108510.0,0.20451682]
[1756650351381,0.96386238,108520.0,108510.0,0.20451682]
[1756650353256,1.84948466,108520.0,108510.0,0.027698]
[1756650353468,1.94246467,108520.0,108510.0,0.027698]
[1756650353679,1.97016867,108520.0,108510.0,0.027698]
[1756650354101,0.5243148,108510.0,108500.0,0.15584]
[1756650354317,0.18434878,108490.0,108480.0,0.28829288]
[1756650354500,0.57413106,108490.0,108480.0,0.53917289]
[1756650354677,0.57413106,108490.0,108480.0,0.35480711]
[1756650354886,0.57413106,108490.0,108480.0,0.34558883]
[1756650355094,0.38978228,108490.0,108480.0,0.55765961]
[1756650355311,0.18431566,108510.0,108490.0,0.2052876]
[1756650355479,0.38978228,108500.0,108490.0,0.2052876]
[1756650355680,0.38978228,108500.0,108490.0,0.52700761]
[1756650355901,0.38978228,108500.0,108490.0,0.55470861]
[1756650356103,0.38978228,108500.0,108490.0,0.55763861]
[1756650357619,0.38978228,108500.0,108490.0,0.59987692]
[1756650357840,0.38978228,108500.0,108490.0,0.60087692]
[1756650358040,0.38978228,108500.0,108490.0,0.60187692]
[1756650359115,0.77956456,108500.0,108490.0,0.60187692]
[1756650360132,0.96389635,108500.0,108490.0,0.60187692]
[1756650360338,0.96389635,108500.0,108490.0,0.41752814]
[1756650361097,0.18433179,108500.0,108490.0,0.41752814]
[1756650361308,0.18431566,108510.0,108490.0,0.60187692]
[1756650361508,0.18431566,108510.0,108500.0,0.11684883]
[1756650361720,0.57409794,108510.0,108500.0,0.12121297]
[1756650362175,0.57409794,108510.0,108500.0,0.19209297]
[1756650362375,0.57409794,108510.0,108500.0,0.1989951]
[1756650363004,0.57409794,108510.0,108500.0,0.38332689]
[1756650363216,0.57509794,108510.0,108500.0,0.38332689]
[1756650363656,0.57409794,108510.0,108500.0,0.38332689]
[1756650363846,0.18431566,108510.0,108500.0,0.41102689]
[1756650364052,0.57509794,108510.0,108500.0,0.41102689]
[1756650366812,0.57509794,108510.0,108500.0,0.2266951]
[1756650369837,0.57509794,108510.0,108500.0,0.41102689]
[1756650371021,0.57509794,108510.0,108500.0,0.56682689]
[1756650371468,0.57509794,108510.0,108500.0,0.5654553]
[1756650372886,0.18531566,108510.0,108500.0,0.5654553]
[1756650373086,0.57509794,108510.0,108500.0,0.5654553]
[1756650373287,0.57509794,108510.0,108500.0,0.55624903]
[1756650373846,0.57509794,108510.0,108500.0,0.21611724]
[1756650374086,0.57509794,108510.0,108500.0,0.37191724]
[1756650375178,0.57509794,108510.0,108500.0,0.55624903]
[1756650375489,0.57509794,108510.0,108500.0,0.40044903]
[1756650375662,0.57509794,108510.0,108500.0,0.55624903]
[1756650376752,0.18531566,108510.0,108500.0,0.55624903]
[1756650376946,0.57509794,108510.0,108500.0,0.55624903]
[1756650377555,0.18531566,108510.0,108500.0,0.55624903]
[1756650377759,0.57509794,108510.0,108500.0,0.55624903]
[1756650383560,0.57509794,108510.0,108500.0,0.40044903]
[1756650383792,0.57509794,108510.0,108500.0,0.21611724]
[1756650383995,0.57509794,108510.0,108500.0,0.37187724]
[1756650384599,0.57409794,108510.0,108500.0,0.37187724]
[1756650384824,0.57509794,108510.0,108500.0,0.37187724]
[1756650384998,0.57509794,108510.0,108500.0,0.21611724]
[1756650385210,0.57509794,108510.0,108500.0,0.37187724]
[1756650385410,0.57409794,108510.0,108500.0,0.37187724]
[1756650385689,0.57409794,108510.0,108500.0,0.55620903]
[1756650386774,0.57409794,108510.0,108500.0,0.55720903]
[1756650392365,0.38978228,108510.0,108500.0,0.55720903]
[1756650392571,0.58329499,108520.0,108510.0,0.02093882]
[1756650392729,0.97307727,108520.0,108510.0,0.20822362]
[1756650392936,0.97307727,108520.0,108510.0,0.21030362]
[1756650393340,0.97307727,108520.0,108510.0,0.20822362]
[1756650393789,0.97307727,108520.0,108510.0,0.23592362]
[1756650394247,0.97307727,108520.0,108510.0,0.05160882]
[1756650394597,0.97407727,108520.0,108510.0,0.05160882]
[1756650396953,0.19451271,108520.0,108510.0,0.05160882]
[1756650397156,0.97407727,108520.0,108510.0,0.05160882]
[1756650405627,0.97407727,108520.0,108510.0,0.05368882]
[1756650405798,0.97407727,108520.0,108510.0,0.05160882]
[1756650414443,0.19451271,108520.0,108510.0,0.05366882]
[1756650414748,0.97407727,108520.0,108510.0,0.05366882]
[1756650416997,0.19451271,108520.0,108510.0,0.05366882]
[1756650417282,0.97407727,108520.0,108510.0,0.05366882]
[1756650426914,0.97407727,108520.0,108510.0,0.05160882]
[1756650428528,0.19451271,108520.0,108510.0,0.05160882]
[1756650428759,0.97407727,108520.0,108510.0,0.05160882]
[1756650429531,0.97407727,108520.0,108510.0,0.23798362]
[1756650431826,0.19451271,108520.0,108510.0,0.23798362]
[1756650432060,0.97407727,108520.0,108510.0,0.23798362]
[1756650432713,0.19451271,108520.0,108510.0,0.23798362]
[1756650432936,0.97407727,108520.0,108510.0,0.23798362]
[1756650433687,0.19451271,108520.0,108510.0,0.23798362]
[1756650433905,0.97407727,108520.0,108510.0,0.23798362]
[1756650435501,0.97407727,108520.0,108510.0,0.05366882]
[1756650436363,0.97407727,108520.0,108510.0,0.05229464]
[1756650438394,0.97407727,108520.0,108510.0,0.20777464]
[1756650438953,0.19451271,108520.0,108510.0,0.20777464]
[1756650439161,0.97407727,108520.0,108510.0,0.20777464]
[1756650442411,0.19451271,108520.0,108510.0,0.20777464]
[1756650442651,0.19451271,108520.0,108510.0,0.39208944]
[1756650442844,0.97407727,108520.0,108510.0,0.38705944]
[1756650443444,0.97407727,108520.0,108510.0,0.39011944]
[1756650444125,0.001,108520.0,108510.0,0.48520945]
[1756650444245,0.39078228,108520.0,108510.0,0.48520945]
[1756650444662,0.001,108520.0,108510.0,0.48520945]
[1756650445070,0.39078228,108520.0,108510.0,0.48520945]
[1756650445274,0.001,108520.0,108510.0,0.48520945]
[1756650445478,0.39078228,108520.0,108510.0,0.48520945]
[1756650447737,0.16448791,108520.0,108510.0,0.48520945]
[1756650448365,0.16448791,108520.0,108510.0,0.48516945]
[1756650448752,0.34878573,108520.0,108510.0,0.32972945]
[1756650448967,0.34878573,108520.0,108510.0,0.48516945]
[1756650449410,0.5740801,108520.0,108510.0,0.48516945]
[1756650450535,0.5740801,108520.0,108510.0,0.30085465]
[1756650450774,0.5740801,108520.0,108510.0,0.48516945]
[1756650453644,0.18429782,108520.0,108510.0,0.48516945]
[1756650453851,0.5740801,108520.0,108510.0,0.48516945]
[1756650454122,0.18429782,108520.0,108510.0,0.48516945]
[1756650454337,0.5740801,108520.0,108510.0,0.48516945]
[1756650460065,0.5740801,108520.0,108510.0,0.48512945]
[1756650460753,0.5740801,108520.0,108510.0,0.30081465]
[1756650460964,0.18429782,108520.0,108510.0,0.14541465]
[1756650461185,0.5740801,108520.0,108510.0,0.48512945]
[1756650461541,0.18429782,108520.0,108510.0,0.52582387]
[1756650461740,0.5740801,108520.0,108510.0,0.52582387]
[1756650462163,0.5740801,108520.0,108510.0,0.18610907]
[1756650462520,0.5740801,108520.0,108510.0,0.52582387]
[1756650462649,0.18429782,108520.0,108510.0,0.52582387]
[1756650462867,0.5740801,108520.0,108510.0,0.52582387]
[1756650463446,0.5740801,108520.0,108510.0,0.18610907]
[1756650463645,0.5740801,108520.0,108510.0,0.34150907]
[1756650464658,0.96386238,108520.0,108510.0,0.34150907]
[1756650464836,0.96386238,108520.0,108510.0,0.52582387]
[1756650468141,0.18429782,108520.0,108510.0,0.52582387]
[1756650468347,0.96386238,108520.0,108510.0,0.52582387]
[1756650471924,0.18429782,108520.0,108510.0,0.52582387]
[1756650472132,0.96386238,108520.0,108510.0,0.52582387]
[1756650473505,0.96386238,108520.0,108510.0,0.34146907]
[1756650473951,0.96386238,108520.0,108510.0,0.04726464]
[1756650474158,0.96386238,108520.0,108510.0,0.20262464]
[1756650478313,0.96386238,108520.0,108510.0,0.20586464]
[1756650481810,0.96386238,108520.0,108510.0,0.20796464]
[1756650482000,0.96386238,108520.0,108510.0,0.20586464]
[1756650483282,1.44194098,108520.0,108510.0,0.0277]
[1756650483496,0.1843148,108510.0,108500.0,0.15532]
[1756650483723,0.96387936,108510.0,108500.0,0.15532]
[1756650483954,0.18433179,108500.0,108490.0,0.183024]
[1756650484165,0.96389635,108500.0,108490.0,0.15532]
[1756650484454,0.96389635,108500.0,108490.0,0.15856]
[1756650484665,0.96389635,108500.0,108490.0,0.186265]
[1756650485518,0.96389635,108500.0,108490.0,0.189265]
[1756650486581,0.96389635,108500.0,108490.0,0.190265]
[1756650487497,0.96389635,108500.0,108490.0,0.192365]
[1756650488260,0.96389635,108500.0,108490.0,0.037045]
[1756650488432,0.96389635,108500.0,108490.0,0.192365]
[1756650494983,0.74641742,108500.0,108490.0,0.192365]
[1756650495184,0.93074921,108500.0,108490.0,0.192365]
[1756650495357,0.57411407,108500.0,108490.0,0.192365]
[1756650495560,0.96389635,108500.0,108490.0,0.192365]
[1756650503311,0.96389635,108500.0,108490.0,0.21330382]
[1756650503507,0.57411407,108500.0,108490.0,0.49063261]
[1756650503710,0.38978228,108500.0,108490.0,0.49063261]
[1756650504077,0.96389635,108500.0,108490.0,0.49063261]
[1756650505430,0.57411407,108500.0,108490.0,0.49063261]
[1756650507815,0.96389635,108500.0,108490.0,0.30624383]
[1756650508227,0.96389635,108500.0,108490.0,0.49059261]
[1756650514662,0.96389635,108500.0,108490.0,0.33531261]
[1756650514856,0.96389635,108500.0,108490.0,0.49055261]
[1756650516298,0.96389635,108500.0,108490.0,0.33531261]
[1756650516525,0.96389635,108500.0,108490.0,0.49055261]
[1756650517133,0.96389635,108500.0,108490.0,0.33531261]
[1756650517329,0.96389635,108500.0,108490.0,0.49055261]
[1756650521919,0.1843148,108510.0,108490.0,0.49055261]
[1756650522138,0.58329499,108520.0,108500.0,0.30357476]
[1756650522378,0.58329499,108520.0,108510.0,0.18114882]
[1756650522588,0.58329499,108520.0,108510.0,0.20884882]
[1756650523008,0.58329499,108520.0,108510.0,0.05364882]
[1756650523236,0.58329499,108520.0,108510.0,0.20884882]
[1756650523463,0.58329499,108520.0,108510.0,0.39316362]
[1756650523649,0.97307727,108520.0,108510.0,0.39316362]
[1756650524866,0.97307727,108520.0,108510.0,0.20884882]
[1756650525510,0.97407727,108520.0,108510.0,0.20884882]
[1756650525973,0.5750801,108520.0,108510.0,0.48614363]
[1756650526183,0.96486238,108520.0,108510.0,0.48614363]
[1756650526397,0.96486238,108520.0,108510.0,0.14662883]
[1756650526630,0.96486238,108520.0,108510.0,0.30182883]
[1756650526806,0.96486238,108520.0,108510.0,0.48614363]
[1756650527787,0.96486238,108520.0,108510.0,0.30182883]
[1756650528425,0.96486238,108520.0,108510.0,0.48614363]
[1756650529579,0.96486238,108520.0,108510.0,0.5270996]
[1756650530171,0.76988846,108520.0,108510.0,0.5270996]
[1756650530398,0.95418628,108520.0,108510.0,0.5270996]
[1756650530595,0.95418628,108520.0,108510.0,0.1875848]
[1756650530805,0.18429782,108520.0,108510.0,0.5270596]
[1756650530974,0.96386238,108520.0,108510.0,0.5270596]
[1756650534252,0.18428084,108530.0,108520.0,0.20523664]
[1756650534443,0.38978228,108530.0,108520.0,0.30340665]
[1756650534653,0.58412433,108540.0,108520.0,0.45856665]
[1756650534896,0.58417192,108540.0,108530.0,0.00313]
[1756650535097,0.19438964,108540.0,108530.0,0.00313]
[1756650535308,0.58417192,108540.0,108530.0,0.00313]
[1756650535522,0.58417192,108540.0,108530.0,0.032885]
[1756650536875,0.58617192,108540.0,108530.0,0.21716584]
[1756650537438,0.19638964,108540.0,108530.0,0.21716584]
[1756650537787,0.58917192,108540.0,108530.0,0.21716584]
[1756650539054,0.19938964,108540.0,108530.0,0.21716584]
[1756650539315,0.58917192,108540.0,108530.0,0.21716584]
[1756650540948,0.58917192,108540.0,108530.0,0.032885]
[1756650541360,0.19938964,108540.0,108530.0,0.032885]
[1756650541619,0.58917192,108540.0,108530.0,0.032885]
[1756650545455,0.58917192,108540.0,108530.0,0.188005]
[1756650545662,0.58917192,108540.0,108530.0,0.37228584]
[1756650546315,0.58917192,108540.0,108530.0,0.188005]
[1756650546723,0.00591259,108540.0,108530.0,0.87598695]
[1756650547474,0.00591259,108540.0,108530.0,0.48620467]
[1756650547706,0.00091259,108540.0,108530.0,0.87598695]
[1756650550774,0.00091259,108540.0,108530.0,0.87594695]
[1756650551529,0.00091259,108540.0,108530.0,0.87694695]
[1756650551885,0.00091259,108540.0,108530.0,0.87794695]
[1756650552874,0.00091259,108540.0,108530.0,0.33308467]
[1756650553045,0.00091259,108540.0,108530.0,0.87790695]
[1756650553267,0.00091259,108540.0,108530.0,0.48812467]
[1756650555403,0.00091259,108540.0,108530.0,0.87790695]
[1756650558925,0.00091259,108540.0,108530.0,0.33308467]
[1756650559254,0.00091259,108540.0,108530.0,0.87790695]
[1756650560737,0.00091259,108540.0,108530.0,0.33308467]
[1756650560909,0.00091259,108540.0,108530.0,0.87790695]
[1756650565734,0.00091259,108540.0,108530.0,0.48812467]
[1756650565935,0.00091259,108540.0,108530.0,0.87790695]
[1756650566711,4.759e-05,108540.0,108530.0,0.87790695]
[1756650569363,4.759e-05,108540.0,108530.0,0.87671891]
[1756650570366,0.57402917,108550.0,108540.0,0.20520268]
[1756650570565,0.57402917,108550.0,108540.0,0.36016268]
[1756650570765,0.57577917,108550.0,108540.0,0.36226268]
[1756650570969,0.57577917,108550.0,108540.0,0.38995368]
[1756650571339,0.57577917,108550.0,108540.0,0.39301368]
[1756650573635,0.57577917,108550.0,108540.0,0.43473032]
[1756650574355,0.57577917,108550.0,108540.0,0.24836646]
[1756650574776,0.57577917,108550.0,108540.0,0.43263032]
[1756650576368,0.57577917,108550.0,108540.0,0.09340646]
[1756650576581,0.57577917,108550.0,108540.0,0.24836646]
[1756650577322,0.57577917,108550.0,108540.0,0.43263032]
[1756650577517,0.57577917,108550.0,108540.0,0.24836646]
[1756650577724,0.57577917,108550.0,108540.0,0.43263032]
[1756650578992,0.18599689,108550.0,108540.0,0.43473032]
[1756650579123,0.57577917,108550.0,108540.0,0.43473032]
[1756650584411,0.57402917,108550.0,108540.0,0.43473032]
[1756650584570,0.57577917,108550.0,108540.0,0.43473032]
[1756650590436,0.57301547,108550.0,108540.0,0.43473032]
[1756650591412,0.57301547,108550.0,108540.0,0.25038646]
[1756650593698,0.57301547,108550.0,108540.0,0.43465032]
[1756650595769,0.57301547,108550.0,108540.0,0.25038646]
[1756650596174,0.57301547,108550.0,108540.0,0.09550646]
[1756650596392,0.57301547,108550.0,108540.0,0.25038646]
[1756650596825,0.57301547,108550.0,108540.0,0.09550646]
[1756650597047,0.57301547,108550.0,108540.0,0.25034646]
[1756650598109,0.57301547,108550.0,108540.0,0.182531]
[1756650601739,0.96279775,108550.0,108540.0,0.027691]
[1756650601941,0.96388775,108550.0,108540.0,0.182531]
[1756650602375,0.18323319,108550.0,108540.0,0.182531]
[1756650602623,0.18148319,108550.0,108540.0,0.187781]
[1756650602802,0.57126547,108550.0,108540.0,0.187781]
[1756650603594,0.57126547,108550.0,108540.0,0.20871982]
[1756650605661,0.57126547,108550.0,108540.0,0.23814368]
[1756650605883,0.57126547,108550.0,108540.0,0.39298368]
[1756650606847,0.57126547,108550.0,108540.0,0.23814368]
[1756650607055,0.57126547,108550.0,108540.0,0.39294368]
[1756650608042,0.18148319,108550.0,108540.0,0.39294368]
[1756650608244,0.57126547,108550.0,108540.0,0.39294368]
[1756650608654,0.18422991,108560.0,108550.0,0.20518571]
[1756650608856,0.57401219,108560.0,108550.0,0.30341572]
[1756650609259,0.57401219,108560.0,108550.0,0.33110372]
[1756650609666,0.38978228,108560.0,108550.0,0.33110372]
[1756650609916,0.001,108560.0,108550.0,0.33110372]
[1756650610165,0.001,108560.0,108550.0,0.40194372]
[1756650611379,0.39178228,108560.0,108550.0,0.40194372]
[1756650612160,0.39178228,108560.0,108550.0,0.41108833]
[1756650612685,0.002,108560.0,108550.0,0.41108833]
[1756650613011,0.39178228,108560.0,108550.0,0.41108833]
[1756650613209,0.002,108560.0,108550.0,0.41108833]
[1756650613419,0.39178228,108560.0,108550.0,0.41108833]
[1756650614743,0.002,108560.0,108550.0,0.41108833]
[1756650616283,0.002,108560.0,108550.0,0.80087061]
[1756650616654,0.002,108560.0,108550.0,0.95563061]
[1756650617253,0.002,108560.0,108550.0,0.80087061]
[1756650617467,0.002,108560.0,108550.0,0.95563061]
[1756650618074,0.002,108560.0,108550.0,0.41108833]
[1756650618356,0.002,108560.0,108550.0,0.95563061]
[1756650620569,0.59268221,108580.0,108560.0,0.18422991]
[1756650620772,0.59282521,108580.0,108570.0,0.15476]
[1756650620934,0.59457521,108580.0,108570.0,0.15476]
[1756650621136,0.59457521,108580.0,108570.0,0.182446]
[1756650621339,0.59457521,108580.0,108570.0,0.184436]
[1756650621553,0.19382816,108580.0,108570.0,0.39264777]
[1756650621754,0.000343,108580.0,108570.0,0.39264777]
[1756650621953,0.000343,108580.0,108570.0,0.48562778]
[1756650622161,0.004343,108580.0,108570.0,0.48562778]
[1756650622553,0.003343,108580.0,108570.0,0.48562778]
[1756650623221,0.000343,108580.0,108570.0,0.48562778]
[1756650623789,0.000343,108580.0,108570.0,0.52620012]
[1756650625718,0.35784025,108590.0,108570.0,0.52620012]
[1756650625934,0.54205071,108590.0,108580.0,0.00306]
[1756650626158,0.54380071,108590.0,108580.0,0.00306]
[1756650626363,0.54380071,108590.0,108580.0,0.030743]
[1756650626788,0.55300966,108590.0,108580.0,0.032733]
[1756650626993,0.56842364,108590.0,108580.0,0.032733]
[1756650627195,0.56942364,108590.0,108580.0,0.032733]
[1756650627407,0.56842364,108590.0,108580.0,0.032733]
[1756650627752,0.59861567,108590.0,108580.0,0.24017024]
[1756650627999,0.59861567,108590.0,108580.0,0.2378678]
[1756650628158,0.19962444,108590.0,108580.0,0.3925878]
[1756650628369,0.40519626,108590.0,108580.0,0.3925878]
[1756650628606,0.39078228,108590.0,108580.0,0.3925878]
[1756650629034,0.5749613,108590.0,108580.0,0.3925878]
[1756650629256,0.5777113,108590.0,108580.0,0.05367182]
[1756650629431,0.5777113,108590.0,108580.0,0.20839182]
[1756650630419,0.5777113,108590.0,108580.0,0.05168182]
[1756650630622,0.5777113,108590.0,108580.0,0.20640182]
[1756650631052,0.5759613,108590.0,108580.0,0.3925878]
[1756650631250,0.002,108590.0,108580.0,0.3925878]
[1756650631473,0.39178228,108590.0,108580.0,0.3925878]
[1756650632050,0.5759613,108590.0,108580.0,0.3925878]
[1756650632784,0.5749613,108590.0,108580.0,0.3925878]
[1756650633203,0.5767113,108590.0,108580.0,0.05367182]
[1756650633397,0.5767113,108590.0,108580.0,0.20835182]
[1756650633606,0.5757113,108590.0,108580.0,0.20835182]
[1756650633827,0.18592902,108590.0,108580.0,0.20835182]
[1756650634034,0.5757113,108590.0,108580.0,0.20835182]
[1756650635014,0.5757113,108590.0,108580.0,0.05367182]
[1756650635244,0.5757113,108590.0,108580.0,0.2064632]
[1756650635446,0.5757113,108590.0,108580.0,0.04862182]
[1756650635690,0.5757113,108590.0,108580.0,0.20330182]
[1756650636246,0.5757113,108590.0,108580.0,0.20529182]
[1756650636419,0.5757113,108590.0,108580.0,0.20330182]
[1756650637036,0.5757113,108590.0,108580.0,0.20529182]
[1756650637456,0.5757113,108590.0,108580.0,0.05367182]
[1756650637666,0.58370576,108600.0,108580.0,0.48552781]
[1756650637867,0.57426004,108600.0,108590.0,0.00306]
[1756650638286,0.57426004,108600.0,108590.0,0.032731]
[1756650638492,0.18447776,108600.0,108590.0,0.23784884]
[1756650638700,0.57624004,108600.0,108590.0,0.20834982]
[1756650638907,0.57624004,108600.0,108590.0,0.20528982]
[1756650639517,0.57624004,108600.0,108590.0,0.20329982]
[1756650639733,0.57724004,108600.0,108590.0,0.04861982]
[1756650639941,0.57724004,108600.0,108590.0,0.20329982]
[1756650640252,0.57824004,108600.0,108590.0,0.20329982]
[1756650640487,0.57824004,108600.0,108590.0,0.04861982]
[1756650640706,0.57824004,108600.0,108590.0,0.20325982]
[1756650640883,0.57724004,108600.0,108590.0,0.20325982]
[1756650641517,0.58639874,108600.0,108590.0,0.20325982]
[1756650642172,0.57724004,108600.0,108590.0,0.20325982]
[1756650642771,0.57824004,108600.0,108590.0,0.20325982]
[1756650642978,0.18845776,108600.0,108590.0,0.20325982]
[1756650643215,0.57824004,108600.0,108590.0,0.20325982]
[1756650643650,0.57824004,108600.0,108590.0,0.20524982]
[1756650643852,0.57824004,108600.0,108590.0,0.20830982]